bitfinex/quotes_SOLUSD_20260308
["timestamp","ask_amount","ask_price","bid_price","bid_amount"]
[1772949485602,0.28432314,82.539,82.508,0.5]
[1772949486715,0.28432314,82.537,82.508,0.5]
[1772949487304,0.28432314,82.537,82.508,12.11996174]
[1772949487511,0.28432314,82.537,82.509,0.5]
[1772949489609,12.11592517,82.536,82.509,0.5]
[1772949489803,12.11592517,82.536,82.511,0.5]
[1772949491713,12.11592517,82.536,82.513,0.5]
[1772949494208,0.28432314,82.535,82.494,0.5]
[1772949494916,12.11592517,82.536,82.494,0.5]
[1772949495307,12.11592517,82.536,82.501,0.5]
[1772949496124,12.11592517,82.536,82.5,0.5]
[1772949496125,12.39834026,82.549,82.503,0.5]
[1772949497124,42.68338308,82.549,82.503,0.5]
[1772949499029,42.68338308,82.549,82.505,0.5]
[1772949500617,42.68338308,82.549,82.506,12.12033064]
[1772949500824,42.68338308,82.549,82.507,0.5]
[1772949503631,42.68338308,82.549,82.509,0.5]
[1772949506333,42.68338308,82.549,82.511,0.5]
[1772949512541,42.68338308,82.549,82.513,0.5]
[1772949515043,42.68338308,82.549,82.515,0.5]
[1772949516947,4.69952384,82.54,82.515,0.5]
[1772949517134,12.1154848,82.539,82.515,0.5]
[1772949517449,12.1154848,82.539,82.376,33.96529972]
[1772949517450,0.28432314,82.538,82.501,0.5]
[1772949517646,4.69952384,82.53,82.501,0.5]
[1772949517849,0.28432314,82.538,82.501,0.5]
[1772949518347,4.69952384,82.53,82.501,12.6209428]
[1772949518524,4.69952384,82.53,82.502,0.5]
[1772949521751,12.11695282,82.529,82.502,0.5]
[1772949524843,12.11695282,82.529,82.496,12.12168562]
[1772949525155,12.11695282,82.529,82.497,0.5]
[1772949525655,4.69952384,82.51,82.474,0.5]
[1772949526155,4.69952384,82.51,82.475,0.5]
[1772949526454,4.69952384,82.5,82.475,0.5]
[1772949527654,12.12135904,82.499,82.475,0.5]
[1772949528048,12.12135904,82.499,82.477,0.5]
[1772949528637,30.29501885,82.522,82.477,0.5]
[1772949528837,0.28432314,82.519,82.477,0.5]
[1772949529940,0.28432314,82.517,82.479,0.5]
[1772949531750,4.69952384,82.51,82.479,0.5]
[1772949532067,0.28432314,82.515,82.481,0.5]
[1772949533554,0.28432314,82.515,82.475,12.12487822]
[1772949533555,4.69952384,82.5,82.475,12.12487822]
[1772949533759,4.69952384,82.5,82.472,12.62532738]
[1772949533951,4.69952384,82.5,82.473,0.5]
[1772949534150,12.12135904,82.499,82.473,0.5]
[1772949534748,12.12075237,82.504,82.475,0.5]
[1772949536753,12.40421309,82.509,82.475,0.5]
[1772949538377,42.70393796,82.509,82.475,0.5]
[1772949540666,42.70393796,82.509,82.453,60.64031384]
[1772949540667,12.12135904,82.499,82.468,12.12579629]
[1772949540881,0.28432314,82.498,82.466,0.5]
[1772949541045,4.69952384,82.49,82.466,0.5]
[1772949543774,0.28432314,82.496,82.471,0.5]
[1772949544171,4.69952384,82.49,82.467,12.62600895]
[1772949545378,12.12272505,82.49,82.471,0.5]
[1772949547679,12.12194678,82.495,82.471,0.5]
[1772949548968,0.28432314,82.498,82.473,0.5]
[1772949549364,0.28432314,82.496,82.473,0.5]
[1772949551282,12.12194678,82.495,82.473,0.5]
[1772949554562,7.68669931,82.505,82.475,0.5]
[1772949554769,19.80729558,82.505,82.475,0.5]
[1772949555766,19.80729558,82.505,82.476,12.12473931]
[1772949555965,19.80729558,82.505,82.477,0.5]
[1772949557886,4.69952384,82.5,82.472,0.5]
[1772949558262,19.80729558,82.505,82.47,0.2]
[1772949558263,4.69952384,82.49,82.47,0.2]
[1772949558593,4.69952384,82.49,82.464,0.5]
[1772949559877,12.12282849,82.489,82.464,0.5]
[1772949560296,0.28432314,82.496,82.466,0.5]
[1772949561891,0.28432314,82.496,82.465,12.12635663]
[1772949561892,0.28432314,82.496,82.468,0.5]
[1772949562190,12.12194678,82.495,82.468,0.5]
[1772949564691,12.12194678,82.495,82.47,0.5]
[1772949568373,12.12194678,82.495,82.46,0.2]
[1772949568374,12.12018374,82.507,82.472,0.5]
[1772949568797,4.69952384,82.5,82.474,0.5]
[1772949570272,0.14216157,82.506,82.474,0.5]
[1772949570599,0.28432314,82.506,82.474,0.5]
[1772949571308,0.28432314,82.506,82.475,12.12488632]
[1772949571512,0.28432314,82.506,82.476,0.5]
[1772949572517,12.12018374,82.507,82.476,0.5]
[1772949572691,0.28432314,82.506,82.476,0.5]
[1772949573596,12.12018374,82.507,82.478,0.5]
[1772949574698,12.11959617,82.511,82.48,0.5]
[1772949575101,4.70296215,82.51,82.48,0.5]
[1772949578702,12.11988995,82.509,82.48,0.5]
[1772949579502,12.11988995,82.509,82.481,12.12400431]
[1772949579719,12.11988995,82.509,82.482,0.5]
[1772949581199,12.11988995,82.509,82.484,0.5]
[1772949584924,12.11988995,82.509,82.486,0.5]
[1772949592716,12.11988995,82.509,82.473,30.31294924]
[1772949592717,12.11988995,82.509,82.487,12.12312243]
[1772949593019,12.11988995,82.509,82.488,0.5]
[1772949594317,0.28432314,82.518,82.488,0.5]
[1772949596822,0.28432314,82.516,82.488,0.5]
[1772949599723,12.11900866,82.515,82.488,0.5]
[1772949601623,2.82690006,82.532,82.489,0.5]
[1772949601825,14.9435367,82.532,82.491,0.5]
[1772949602024,4.70296215,82.53,82.491,0.5]
[1772949602427,0.28432314,82.529,82.491,0.5]
[1772949602606,0.28432314,82.529,82.46,0.2]
[1772949602607,4.70296215,82.5,82.461,0.5]
[1772949602815,4.70296215,82.5,82.462,0.5]
[1772949603823,12.12135904,82.499,82.464,0.5]
[1772949607134,12.12135904,82.499,82.466,0.5]
[1772949608818,12.12135904,82.499,82.468,0.5]
[1772949611034,4.70296215,82.49,82.468,0.5]
[1772949612623,4.70296215,82.5,82.468,0.5]
[1772949612830,12.12135904,82.499,82.468,0.5]
[1772949615540,4.70296215,82.48,82.461,0.5]
[1772949617040,12.1242983,82.479,82.461,0.5]
[1772949617735,42.43504406,82.479,82.461,0.5]
[1772949620140,0.28432314,82.489,82.461,0.5]
[1772949620438,4.70296215,82.49,82.462,0.5]
[1772949622239,42.42629945,82.496,82.462,0.5]
[1772949622240,4.70296215,82.48,82.462,0.5]
[1772949623734,12.1242983,82.479,82.462,0.5]
[1772949624449,4.70296215,82.49,82.462,0.5]
[1772949624650,12.12205213,82.495,82.463,0.5]
[1772949626442,30.29672599,82.518,82.465,0.5]
[1772949626646,12.12047754,82.505,82.465,0.5]
[1772949627853,12.12047754,82.505,82.467,0.5]
[1772949630350,12.12047754,82.505,82.468,12.1259155]
[1772949630558,12.12047754,82.505,82.469,0.5]
[1772949632749,4.70296215,82.5,82.471,0.5]
[1772949634445,4.70398371,82.5,82.472,12.12532738]
[1772949634654,4.70398371,82.5,82.473,0.5]
[1772949635160,12.12047754,82.505,82.473,0.5]
[1772949641758,12.12047754,82.505,82.474,12.12503334]
[1772949641961,12.12047754,82.505,82.475,0.5]
[1772949642463,4.70398371,82.51,82.475,0.5]
[1772949642768,6.10398371,82.52,82.475,0.5]
[1772949643265,4.70398371,82.51,82.475,0.5]
[1772949644766,12.11988995,82.509,82.477,0.5]
[1772949647876,12.11988995,82.509,82.479,0.5]
[1772949649678,42.41961482,82.509,82.479,0.5]
[1772949651470,12.11988995,82.509,82.481,0.5]
[1772949653765,0.14216157,82.508,82.481,0.5]
[1772949654077,0.14216157,82.508,82.475,12.12478162]
[1772949654260,4.70398371,82.5,82.475,12.62478162]
[1772949654579,0.14216157,82.508,82.476,0.5]
[1772949655581,0.28432314,82.508,82.478,0.5]
[1772949656870,0.28432314,82.506,82.48,0.5]
[1772949659678,12.12047754,82.505,82.48,0.5]
[1772949661175,4.70398371,82.5,82.47,0.5]
[1772949661373,0.28432314,82.499,82.461,12.12694485]
[1772949661580,0.28432314,82.499,82.46,0.2]
[1772949661581,0.28432314,82.489,82.46,0.2]
[1772949661786,0.28432314,82.487,82.46,0.2]
[1772949662294,0.28432314,82.487,82.461,0.5]
[1772949666274,33.99679152,82.501,82.462,0.5]
[1772949666673,0.28432314,82.5,82.462,0.5]
[1772949667491,12.12135904,82.499,82.462,0.5]
[1772949668372,12.12077136,82.503,82.464,0.5]
[1772949671289,12.11988995,82.509,82.466,0.5]
[1772949675782,12.11915553,82.514,82.468,0.5]
[1772949679808,12.11915553,82.514,82.47,0.5]
[1772949681101,12.11915553,82.514,82.471,0.5]
[1772949682097,12.11915553,82.514,82.472,12.12532738]
[1772949682406,12.11915553,82.514,82.473,0.5]
[1772949689507,42.41704437,82.514,82.475,0.5]
[1772949692807,42.41704437,82.514,82.476,12.12473931]
[1772949693012,42.41704437,82.514,82.477,0.5]
[1772949694512,42.41704437,82.514,82.478,12.1244453]
[1772949694710,42.41704437,82.514,82.479,0.5]
[1772949696908,42.41704437,82.514,82.48,12.1241513]
[1772949697113,42.41704437,82.514,82.481,0.5]
[1772949703114,42.41704437,82.514,82.483,0.5]
[1772949709329,42.41704437,82.514,82.485,0.5]
[1772949719622,42.41704437,82.514,82.487,0.5]
[1772949721033,12.11915553,82.514,82.487,0.5]
[1772949722121,60.58208657,82.533,82.49,0.48468343]
[1772949722122,7.45524833,82.515,82.49,0.48468343]
[1772949722321,7.25524833,82.515,82.489,0.48468343]
[1772949725815,7.25524833,82.515,82.488,42.43041411]
[1772949725816,7.25524833,82.515,82.49,12.12268153]
[1772949726137,6.85524833,82.515,82.491,0.49639424]
[1772949727538,0.45798582,82.522,82.491,0.49639424]
[1772949727944,0.45798582,82.522,82.493,0.49639424]
[1772949729132,0.45798582,82.522,82.495,0.49639424]
[1772949730436,0.45798582,82.542,82.495,0.49639424]
[1772949731239,0.45798582,82.54,82.502,0.49639424]
[1772949733350,0.45798582,82.538,82.504,0.49639424]
[1772949734326,0.45798582,82.536,82.506,0.49639424]
[1772949737128,0.45798582,82.54,82.508,0.49639424]
[1772949740144,12.11387038,82.55,82.509,12.11988995]
[1772949740343,12.11387038,82.55,82.51,0.49639424]
[1772949740540,0.45798582,82.549,82.51,0.49639424]
[1772949742648,0.45798582,82.549,82.496,0.28432314]
[1772949742649,0.45798582,82.549,82.512,0.49639424]
[1772949743147,12.11387038,82.55,82.512,0.49639424]
[1772949743358,12.11327764,82.555,82.512,0.49639424]
[1772949743848,0.45798582,82.554,82.512,0.49639424]
[1772949744846,0.45798582,82.554,82.514,0.49639424]
[1772949745760,0.45798582,82.554,82.515,0.49639424]
[1772949748846,0.45798582,82.554,82.517,0.49639424]
[1772949749947,0.45798582,82.554,82.519,0.49639424]
[1772949751150,0.45798582,82.554,82.521,0.49639424]
[1772949754453,0.45798582,82.554,82.522,42.41293229]
[1772949754659,0.45798582,82.554,82.523,0.46558545]
[1772949755156,0.45374772,82.562,82.524,0.46558545]
[1772949756661,0.45374772,82.562,82.526,0.46558545]
[1772949758736,0.45374772,82.562,82.528,0.46558545]
[1772949759855,0.45374772,82.562,82.53,0.46558545]
[1772949762845,0.45374772,82.562,82.531,42.40830717]
[1772949763043,0.45374772,82.572,82.532,0.46558545]
[1772949764162,0.45374772,82.572,82.534,0.46558545]
[1772949765377,0.45374772,82.572,82.536,0.46558545]
[1772949766851,0.45374772,82.559,82.511,30.29878468]
[1772949767062,0.45374772,82.558,82.511,30.76437013]
[1772949767454,0.45374772,82.555,82.512,12.11944929]
[1772949767654,0.45374772,82.555,82.512,12.58503474]
[1772949768755,0.45374772,82.553,82.513,0.46558545]
[1772949770971,0.45374772,82.551,82.514,12.11915553]
[1772949771271,0.45374772,82.551,82.514,12.58474098]
[1772949771475,0.45374772,82.551,82.514,12.11915553]
[1772949771778,0.45374772,82.551,82.515,0.46558545]
[1772949772273,0.45374772,82.551,82.514,12.11915553]
[1772949773274,0.45374772,82.549,82.511,0.46558545]
[1772949778375,0.45374772,82.561,82.513,0.46558545]
[1772949778570,0.45374772,82.561,82.514,0.46558545]
[1772949779766,0.45374772,82.561,82.515,42.41653032]
[1772949779958,0.45374772,82.561,82.516,0.46558545]
[1772949780867,0.45374772,82.561,82.518,0.46558545]
[1772949781070,0.45374772,82.561,82.521,0.46558545]
[1772949783076,0.45374772,82.561,82.523,0.4955449]
[1772949785176,0.45374772,82.561,82.525,0.4955449]
[1772949787388,0.45374772,82.561,82.527,0.4955449]
[1772949789785,0.45374772,82.561,82.513,0.28432314]
[1772949789786,0.45374772,82.561,82.529,0.4955449]
[1772949790786,0.45374772,82.561,82.531,0.4955449]
[1772949792272,0.45374772,82.561,82.533,0.4955449]
[1772949794982,0.45374772,82.561,82.535,0.4955449]
[1772949796492,0.4951856,82.575,82.536,0.4955449]
[1772949797190,0.4951856,82.575,82.539,0.4955449]
[1772949798176,0.4951856,82.575,82.542,0.4955449]
[1772949798990,0.2,82.59,82.543,0.4955449]
[1772949800892,0.4951856,82.589,82.545,0.28432314]
[1772949801077,0.4951856,82.589,82.546,0.4955449]
[1772949803889,0.4951856,82.589,82.548,0.4955449]
[1772949806876,0.4951856,82.589,82.549,42.39905994]
[1772949807078,0.4951856,82.589,82.55,0.4955449]
[1772949809179,0.4951856,82.587,82.552,0.4955449]
[1772949810280,12.10858983,82.586,82.553,12.11343016]
[1772949810480,0.4951856,82.585,82.554,0.4955449]
[1772949812897,0.4951856,82.585,82.556,0.45915459]
[1772949815404,0.4951856,82.585,82.557,12.11284324]
[1772949815586,0.4951856,82.585,82.558,0.45915459]
[1772949816606,0.4951856,82.585,82.559,12.11254981]
[1772949816807,0.4951856,82.585,82.56,0.45915459]
[1772949818609,0.4951856,82.585,82.562,0.45915459]
[1772949821906,0.4951856,82.585,82.563,12.57111757]
[1772949825308,0.4951856,82.585,82.564,0.45915459]
[1772949829695,0.4951856,82.585,82.566,0.45915459]
[1772949829913,0.2,82.59,82.566,0.45915459]
[1772949830615,0.47591246,82.589,82.566,0.45915459]
[1772949831707,0.2,82.6,82.567,0.45915459]
[1772949832011,0.2,82.6,82.569,0.45915459]
[1772949832315,0.67591246,82.6,82.569,0.45915459]
[1772949832688,0.47591246,82.599,82.569,0.45915459]
[1772949833306,0.47591246,82.599,82.571,0.45915459]
[1772949835697,0.47591246,82.619,82.573,0.45915459]
[1772949835897,0.47591246,82.619,82.574,0.45915459]
[1772949836501,12.10375337,82.619,82.574,0.45915459]
[1772949836706,0.47591246,82.618,82.574,0.45915459]
[1772949836903,0.47591246,82.617,82.574,0.45915459]
[1772949837408,0.47591246,82.609,82.572,12.11064283]
[1772949837618,0.47591246,82.609,82.573,0.45915459]
[1772949837806,0.47591246,82.607,82.574,12.1103495]
[1772949839005,0.47591246,82.607,82.569,12.11101967]
[1772949839325,0.47591246,82.607,82.57,0.45915459]
[1772949839910,12.10565818,82.606,82.571,12.1107895]
[1772949840222,0.47591246,82.605,82.572,0.45915459]
[1772949842925,0.47082317,82.603,82.574,0.45539953]
[1772949844528,0.2,82.62,82.575,0.45539953]
[1772949844827,0.2,82.62,82.576,0.45539953]
[1772949845730,0.2,82.62,82.578,0.45539953]
[1772949846215,0.67082317,82.63,82.579,0.45539953]
[1772949846926,0.47082317,82.629,82.579,0.45539953]
[1772949847218,12.57311171,82.629,82.579,0.45539953]
[1772949847410,0.47082317,82.628,82.579,0.45539953]
[1772949849336,0.47082317,82.628,82.577,102.93423106]
[1772949849337,0.47082317,82.626,82.582,0.45539953]
[1772949849509,0.47082317,82.625,82.581,0.45539953]
[1772949854217,0.47082317,82.619,82.562,0.73972267]
[1772949854426,0.47082317,82.619,82.563,0.45539953]
[1772949855816,0.47082317,82.619,82.571,0.45539953]
[1772949857736,42.36057319,82.624,82.57,0.5]
[1772949857737,0.47082317,82.617,82.573,0.45539953]
[1772949861148,0.47082317,82.615,82.575,0.45539953]
[1772949862824,0.47082317,82.613,82.577,0.45539953]
[1772949864849,0.47082317,82.611,82.579,0.45539953]
[1772949865029,12.10477896,82.612,82.571,12.1107895]
[1772949865030,0.47082317,82.609,82.571,12.1107895]
[1772949866227,0.47082317,82.599,82.567,12.11133857]
[1772949866633,0.47082317,82.599,82.562,12.11210968]
[1772949867039,0.47082317,82.597,82.563,0.45539953]
[1772949868935,0.47082317,82.597,82.565,0.45539953]
[1772949872232,0.47082317,82.597,82.567,0.45539953]
[1772949872751,0.47466908,82.595,82.567,0.45539953]
[1772949875946,0.47466908,82.595,82.568,42.38930336]
[1772949876152,0.47466908,82.595,82.569,0.49364317]
[1772949877654,0.47466908,82.594,82.569,0.49364317]
[1772949884257,0.28432314,82.609,82.568,12.11122953]
[1772949884258,0.47466908,82.592,82.568,12.11122953]
[1772949884760,0.47466908,82.592,82.568,12.6048727]
[1772949884962,0.47466908,82.592,82.569,0.49364317]
[1772949886762,0.47466908,82.59,82.561,0.49364317]
[1772949887848,4.69196665,82.59,82.561,0.49364317]
[1772949888065,0.47466908,82.589,82.541,0.49364317]
[1772949890467,0.47466908,82.587,82.543,0.49364317]
[1772949891853,30.26862547,82.594,82.545,0.49364317]
[1772949892058,0.47466908,82.593,82.545,0.49364317]
[1772949893565,0.28432314,82.597,82.545,0.49364317]
[1772949893772,0.47466908,82.596,82.545,0.49364317]
[1772949896952,0.47466908,82.594,82.547,0.49364317]
[1772949899954,0.28432314,82.599,82.549,0.49364317]
[1772949899955,0.47466908,82.592,82.549,0.49364317]
[1772949902154,12.10785678,82.591,82.551,0.45983794]
[1772949902473,12.55981834,82.591,82.551,0.45983794]
[1772949902678,12.10785678,82.591,82.551,0.45983794]
[1772949902883,12.57472653,82.591,82.551,0.45983794]
[1772949903277,0.46686975,82.59,82.551,0.45983794]
[1772949904475,12.10814999,82.589,82.552,12.11357689]
[1772949904659,0.46686975,82.588,82.553,0.46268915]
[1772949905983,0.46686975,82.586,82.555,0.46268915]
[1772949908985,0.46686975,82.584,82.557,0.46268915]
[1772949911985,0.46686975,82.584,82.558,12.11269652]
[1772949912187,0.46686975,82.584,82.559,0.46268915]
[1772949914693,0.46686975,82.584,82.56,12.1124031]
[1772949914877,0.46686975,82.584,82.561,0.46268915]
[1772949915685,0.46686975,82.584,82.562,12.11210968]
[1772949915989,0.46686975,82.584,82.563,0.46268915]
[1772949921095,0.46686975,82.582,82.563,0.46268915]
[1772949921792,0.46686975,82.601,82.565,0.46268915]
[1772949922087,0.46686975,82.599,82.565,0.46268915]
[1772949923285,0.46686975,82.597,82.567,0.46268915]
[1772949925992,0.46686975,82.599,82.569,0.46268915]
[1772949926292,0.46686975,82.603,82.569,0.46268915]
[1772949930006,0.46686975,82.601,82.57,12.11093617]
[1772949930180,0.46686975,82.601,82.571,0.46268915]
[1772949933102,0.48661576,82.599,82.573,0.47115797]
[1772949935998,0.48661576,82.599,82.574,12.1103495]
[1772949936204,0.48661576,82.599,82.575,0.47115797]
[1772949937994,0.28432314,82.609,82.575,0.47115797]
[1772949937995,0.48661576,82.597,82.575,0.47115797]
[1772949938492,12.10712383,82.596,82.575,0.47115797]
[1772949938682,0.48661576,82.595,82.575,0.47115797]
[1772949941100,0.48661576,82.593,82.568,12.11110576]
[1772949942586,0.48661576,82.593,82.548,30.28508582]
[1772949943287,0.48661576,82.591,82.551,0.47115797]
[1772949945304,0.48661576,82.589,82.553,0.47115797]
[1772949948093,0.48661576,82.587,82.555,0.47115797]
[1772949950317,0.48661576,82.585,82.557,0.47115797]
[1772949952999,0.48661576,82.579,82.544,0.47115797]
[1772949953298,0.48661576,82.578,82.529,0.47115797]
[1772949953902,0.48661576,82.578,82.531,0.47115797]
[1772949954919,0.48661576,82.569,82.531,0.47115797]
[1772949955216,0.48661576,82.567,82.533,0.47115797]
[1772949960427,0.48661576,82.565,82.534,12.11621877]
[1772949960725,0.48661576,82.565,82.535,0.47115797]
[1772949963113,0.48661576,82.565,82.537,0.49174011]
[1772949963421,1.54216157,82.579,82.537,0.49174011]
[1772949963422,1.4,82.579,82.537,0.49174011]
[1772949964028,0.47608901,82.578,82.537,0.49174011]
[1772949966025,0.47608901,82.578,82.538,42.40471054]
[1772949966227,0.47608901,82.578,82.539,0.49174011]
[1772949975933,0.47608901,82.578,82.54,42.40368305]
[1772949976137,0.47608901,82.578,82.541,0.49174011]
[1772949977437,0.47608901,82.588,82.543,0.49174011]
[1772949978836,0.47608901,82.588,82.545,0.49174011]
[1772949981025,0.47608901,82.588,82.546,42.40060087]
[1772949981238,0.47608901,82.588,82.547,0.49174011]
[1772949982332,0.47608901,82.588,82.549,0.49174011]
[1772949984042,0.47608901,82.588,82.55,42.39854633]
[1772949984231,0.47608901,82.588,82.551,0.49174011]
[1772949987058,0.47608901,82.588,82.552,42.39751913]
[1772949987234,0.47608901,82.588,82.553,0.49174011]
[1772949989943,0.47608901,82.588,82.555,0.49174011]
[1772949993232,0.47608901,82.588,82.557,0.49747432]
[1772949993628,4.69248449,82.58,82.541,12.83957069]
[1772949993844,0.46439324,82.569,82.541,24.35474641]
[1772949994034,0.46439324,82.569,82.541,12.09179506]
[1772949994234,4.69248449,82.56,82.541,12.09179506]
[1772949994652,4.69248449,82.56,82.521,30.29519234]
[1772949994653,4.69248449,82.55,82.517,12.11871493]
[1772949995355,12.11401712,82.549,82.517,12.11871493]
[1772949995551,4.69248449,82.54,82.517,12.11871493]
[1772949997248,4.69248449,82.54,82.513,12.11930241]
[1772949997558,12.11401712,82.549,82.513,12.11930241]
[1772949998141,0.28432314,82.548,82.513,12.11930241]
[1772949998344,4.69248449,82.54,82.513,12.11930241]
[1772949998542,4.70044845,82.54,82.513,12.11930241]
[1772949999361,12.1154848,82.539,82.503,12.12077136]
[1772949999559,12.1154848,82.539,82.503,12.62077136]
[1772950000736,12.1154848,82.539,82.504,0.5]
[1772950001057,0.28432314,82.538,82.504,0.5]
[1772950001252,4.70044845,82.53,82.498,0.5]
[1772950001454,4.70044845,82.53,82.497,30.30402866]
[1772950001954,4.70044845,82.53,82.493,0.5]
[1772950002153,4.70044845,82.52,82.49,0.1]
[1772950002350,0.28432314,82.519,82.49,0.1]
[1772950002685,4.70044845,82.51,82.49,0.1]
[1772950002858,12.11988995,82.509,82.49,0.1]
[1772950005356,4.70044845,82.5,82.473,12.12518036]
[1772950008075,16.82173259,82.5,82.473,12.12518036]
[1772950009958,0.28432314,82.499,82.47,0.1]
[1772950010199,12.12282849,82.489,82.47,0.1]
[1772950011274,0.28432314,82.499,82.471,0.5]
[1772950011275,12.12213229,82.494,82.471,0.5]
[1772950014080,0.28432314,82.497,82.471,0.5]
[1772950014674,4.70044845,82.49,82.471,0.5]
[1772950015087,4.70044845,82.49,82.47,0.1]
[1772950016269,12.12282849,82.489,82.47,0.1]
[1772950022887,1.4,82.498,82.471,0.5]
[1772950023092,0.3,82.519,82.471,0.5]
[1772950023980,12.11900866,82.515,82.471,0.5]
[1772950024585,12.11900866,82.515,82.473,0.5]
[1772950026970,12.11900866,82.515,82.475,0.5]
[1772950032189,12.11900866,82.515,82.477,0.5]
[1772950035093,0.3,82.529,82.479,0.5]
[1772950035284,12.11777117,82.524,82.479,0.5]
[1772950035484,0.3,82.529,82.479,0.5]
[1772950035485,12.11824452,82.521,82.479,0.5]
[1772950036086,12.11755402,82.525,82.479,0.5]
[1772950036677,12.11755402,82.525,82.481,0.5]
[1772950039298,12.11755402,82.525,82.48,0.5]
[1772950039299,12.11755402,82.525,82.482,42.43350063]
[1772950039498,4.70044845,82.53,82.483,0.5]
[1772950040787,12.11858829,82.518,82.485,0.5]
[1772950043109,12.11858829,82.518,82.487,0.5]
[1772950043805,12.11767189,82.525,82.487,0.5]
[1772950045104,12.11767189,82.525,82.488,12.12297546]
[1772950045310,12.11767189,82.525,82.489,0.5]
[1772950045690,12.11814885,82.521,82.489,0.5]
[1772950047004,12.11814885,82.521,82.49,12.12268153]
[1772950047193,12.11814885,82.521,82.491,0.5]
[1772950049686,12.11758296,82.525,82.493,0.5]
[1772950052718,12.11735394,82.527,82.495,0.5]
[1772950053898,12.11735394,82.527,82.497,0.5]
[1772950056234,12.11735394,82.527,82.498,12.12150597]
[1772950056518,12.11735394,82.527,82.499,0.5]
[1772950059122,12.11735394,82.527,82.5,12.12121212]
[1772950059306,12.11735394,82.527,82.501,0.5]
[1772950060519,4.70060673,82.53,82.501,0.5]
[1772950062119,12.11695282,82.529,82.501,0.5]
[1772950065531,12.11695282,82.529,82.503,0.5]
[1772950072022,42.40933489,82.529,82.503,0.5]
[1772950080535,0.45323141,82.527,82.485,12.12341637]
[1772950080727,0.45323141,82.509,82.475,12.12488632]
[1772950082442,0.4999233,82.507,82.47,0.1]
[1772950082643,0.4999233,82.507,82.471,0.48854307]
[1772950086234,0.49964285,82.505,82.473,0.48854307]
[1772950087147,0.49964285,82.499,82.471,0.48854307]
[1772950087345,0.49964285,82.499,82.472,0.48854307]
[1772950089238,0.49964285,82.497,82.472,0.48854307]
[1772950091234,0.49964285,82.489,82.47,0.1]
[1772950091635,0.49964285,82.489,82.461,12.12688201]
[1772950091636,0.49964285,82.489,82.46,0.68854307]
[1772950091849,0.49964285,82.489,82.461,0.48854307]
[1772950093547,0.49964285,82.487,82.461,0.48854307]
[1772950098153,12.1232694,82.486,82.461,0.48854307]
[1772950098370,0.49964285,82.485,82.463,0.48854307]
[1772950102766,30.30464729,82.496,82.473,0.49982142]
[1772950102965,30.30048588,82.507,82.473,0.49982142]
[1772950103756,12.12136661,82.499,82.473,0.49982142]
[1772950103948,12.12136661,82.499,82.464,42.44276289]
[1772950103949,12.12136661,82.499,82.475,0.49982142]
[1772950109470,12.12136661,82.499,82.477,0.49982142]
[1772950112054,12.12136661,82.499,82.473,0.49982142]
[1772950131792,0.28432314,82.498,82.462,0.49982142]
[1772950135991,0.28432314,82.496,82.464,0.49982142]
[1772950146203,12.12194678,82.495,82.464,0.49982142]
[1772950146395,12.12194678,82.495,82.466,0.49982142]
[1772950161125,4.70408747,82.49,82.466,0.49982142]
[1772950161597,4.70408747,82.49,82.46,0.2]
[1772950161804,4.70408747,82.49,82.461,0.49982142]
[1772950164214,42.42989973,82.489,82.461,0.49982142]
[1772950165011,4.70408747,82.48,82.46,0.2]
[1772950165534,4.70408747,82.48,82.46,0.69982142]
[1772950165724,4.70408747,82.48,82.461,0.49982142]
[1772950167322,12.1242983,82.479,82.461,0.49982142]
[1772950170255,42.4309285,82.487,82.461,0.49982142]
[1772950170443,0.28432314,82.486,82.461,0.49982142]
[1772950173327,12.12341637,82.485,82.461,0.49982142]
[1772950188662,0.3,82.488,82.463,0.49982142]
[1772950188856,12.12312243,82.487,82.463,0.49982142]
[1772950191265,0.28432314,82.496,82.463,0.49982142]
[1772950194371,12.12194678,82.495,82.463,0.49982142]
[1772950194867,12.12194678,82.495,82.465,0.49982142]
[1772950196265,12.1213521,82.5,82.465,0.49982142]
[1772950196456,12.1213521,82.5,82.467,0.49982142]
[1772950198448,12.1213521,82.5,82.469,0.49982142]
[1772950199667,12.1213521,82.5,82.471,0.49982142]
[1772950201676,9.32263502,82.503,82.473,0.46262598]
[1772950201850,8.72263502,82.503,82.474,0.49943158]
[1772950202048,8.32263502,82.503,82.474,0.49943158]
[1772950202259,8.12263502,82.503,82.475,0.39964285]
[1772950203265,8.12263502,82.503,82.472,42.43864583]